bitfinex-derivatives/quotes_SOLF0:USTF0_20250830
["timestamp","ask_amount","ask_price","bid_price","bid_amount"]
[1756537322346,6.58524835,205.15,205.11,7.8]
[1756537322543,2.44524835,205.14,205.1,0.03091266]
[1756537322742,2.44524835,205.13,205.1,0.03091266]
[1756537322942,4.14,205.18,205.11,7.8]
[1756537323246,2.44531078,205.17,205.11,7.8]
[1756537323449,2.44531078,205.16,205.1,0.03091266]
[1756537323644,6.58531078,205.15,205.11,7.8]
[1756537323843,2.44531078,205.14,205.1,0.03091266]
[1756537324148,4.14,205.15,205.1,0.03091266]
[1756537324349,2.44367532,205.14,205.11,7.8]
[1756537324651,4.14,205.2,205.12,7.8]
[1756537324944,2.44408039,205.19,205.11,7.8]
[1756537325151,2.44408039,205.18,205.12,122.76]
[1756537325344,4.14,205.2,205.13,7.8334612]
[1756537325546,2.44200814,205.19,205.13,7.8334612]
[1756537325746,4.14,205.2,205.13,7.8334612]
[1756537325947,2.44209817,205.19,205.13,7.8334612]
[1756537326146,73.13147962,205.27,205.17,7.8]
[1756537326344,2.44235591,205.26,205.17,7.8]
[1756537326550,2.44235591,205.25,205.17,7.8]
[1756537326751,2.44235591,205.24,205.17,7.8]
[1756537327058,2.44235591,205.23,205.2,7.17]
[1756537327249,2.44235591,205.22,205.2,7.17]
[1756537327452,4.17,205.26,205.2,7.17]
[1756537327649,2.43903076,205.25,205.2,7.17]
[1756537327850,4.17,205.23,205.2,7.17]
[1756537328050,2.43903076,205.22,205.2,7.17]
[1756537328251,4.17,205.21,205.19,0.03082545]
[1756537328452,4.17,205.26,205.19,0.03082545]
[1756537328752,4.17,205.24,205.19,0.03082545]
[1756537328947,4.17,205.22,205.19,0.03082545]
[1756537329152,4.17,205.2,205.19,0.03082545]
[1756537329352,2.43729963,205.2,205.19,0.03082545]
[1756537329549,6.60729963,205.2,205.19,0.03082545]
[1756537330460,6.60579658,205.2,205.19,0.03082545]
[1756537333463,7.08579658,205.2,205.19,0.03082545]
[1756537333658,4.14,205.19,205.08,9.97254825]
[1756537333854,4.14,205.17,205.08,9.97254825]
[1756537334256,2.434914,205.16,205.08,9.97254825]
[1756537334559,4.14,205.17,205.09,7.17]
[1756537334759,2.43507123,205.16,205.09,7.17]
[1756537334961,0.03635018,205.14,205.08,9.97254825]
[1756537335260,0.03635018,205.14,205.09,7.17]
[1756537335452,0.03635018,205.14,205.08,2.80254825]
[1756537335853,0.03635018,205.14,205.09,7.17]
[1756537336054,0.03635018,205.14,205.08,2.80254825]
[1756537336455,0.03635018,205.14,205.11,2.80254825]
[1756537336861,0.03635018,205.14,205.12,7.17]
[1756537337362,0.03635018,205.14,205.11,2.80254825]
[1756537337562,0.03635018,205.14,205.12,7.17]
[1756537338657,0.03635018,205.14,205.11,2.80254825]
[1756537339062,0.03635018,205.14,205.12,7.17]
[1756537339462,4.14,205.18,205.12,7.17]
[1756537339657,2.43616968,205.17,205.08,2.80254825]
[1756537339860,0.03543482,205.15,205.09,7.17]
[1756537344068,0.03543482,205.15,205.14,9.97254825]
[1756537344664,0.03543482,205.15,205.14,10.45254825]
[1756537344964,4.13,205.23,205.15,7.17]
[1756537345866,73.13147962,205.27,205.18,7.17]
[1756537346070,2.43881021,205.26,205.18,7.17]
[1756537346372,2.43881021,205.25,205.18,7.17]
[1756537346566,2.43881021,205.24,205.18,7.17]
[1756537346766,77.30147962,205.27,205.18,7.17]
[1756537347066,2.43838842,205.26,205.18,7.17]
[1756537347261,73.13147962,205.27,205.2,2.80254825]
[1756537347467,73.13147962,205.27,205.18,7.17]
[1756537347468,77.30147962,205.27,205.19,7.17]
[1756537348165,77.30147962,205.27,205.21,0.03262379]
[1756537349172,77.30147962,205.27,205.21,7.20262379]
[1756537352673,4.17,205.31,205.22,7.17]
[1756537353470,4.17,205.31,205.24,7.20404368]
[1756537354376,4.17,205.35,205.25,7.17]
[1756537354569,2.43574266,205.34,205.25,7.17]
[1756537354763,4.17,205.35,205.25,7.17]
[1756537354968,2.43578827,205.34,205.25,7.17]
[1756537355164,4.17,205.35,205.28,7.17]
[1756537355369,2.43429073,205.34,205.28,7.17]
[1756537355566,2.80254825,205.35,205.27,0.03678117]
[1756537355773,4.17,205.33,205.27,0.03678117]
[1756537359177,4.17,205.33,205.28,7.55]
[1756537359378,4.17,205.33,205.27,2.83932942]
[1756537359677,4.17,205.37,205.28,7.55]
[1756537359870,2.4330353,205.36,205.28,7.55]
[1756537360174,6.6030353,205.35,205.28,7.55]
[1756537360375,4.17,205.35,205.28,7.55]
[1756537361978,78.6953149,205.39,205.28,7.55]
[1756537362171,6.60464372,205.38,205.28,7.55]
[1756537362368,4.17,205.35,205.28,7.55]
[1756537362777,4.17,205.35,205.29,0.03336689]
[1756537365168,4.17,205.33,205.29,0.03336689]
[1756537365371,2.80254825,205.34,205.29,0.03336689]
[1756537365576,4.17,205.33,205.29,0.03336689]
[1756537365770,4.17,205.3,205.29,0.03336689]
[1756537369176,6.60410001,205.3,205.29,0.03336689]
[1756537369575,4.13,205.29,205.21,7.55]
[1756537369883,6.93254825,205.27,205.21,7.55]
[1756537370976,4.16617203,205.26,205.21,7.55]
[1756537371176,0.03617203,205.26,205.19,7.55]
[1756537371577,6.93254825,205.31,205.19,7.55]
[1756537371973,0.03353445,205.25,205.19,7.55]
[1756537379683,0.03353445,205.25,205.21,7.55]
[1756537379982,0.03353445,205.25,205.2,0.03132465]
[1756537380182,0.03353445,205.25,205.21,7.55]
[1756537380383,4.16353445,205.25,205.21,7.55]
[1756537380780,4.16353445,205.25,205.2,0.03132465]
[1756537380781,4.13,205.24,205.2,0.03132465]
[1756537380979,0.03353445,205.25,205.2,0.03132465]
[1756537381683,4.13,205.24,205.2,0.03132465]
[1756537382786,0.03353445,205.25,205.2,0.03132465]
[1756537383285,4.13,205.22,205.2,0.03132465]
[1756537383483,6.56876183,205.21,205.2,0.03132465]
[1756537383788,0.03353445,205.25,205.2,0.03132465]
[1756537383987,6.56896999,205.24,205.2,0.03132465]
[1756537384190,4.13,205.24,205.2,7.58132465]
[1756537385285,0.03353445,205.25,205.2,7.58132465]
[1756537385478,2.44032015,205.24,205.2,0.03132465]
[1756537385684,4.13,205.22,205.2,0.03132465]
[1756537385988,2.80254825,205.23,205.2,0.03132465]
[1756537386286,4.13,205.21,205.2,0.03132465]
[1756537387287,6.57169699,205.21,205.2,0.03132465]
[1756537388992,2.44169699,205.21,205.2,0.03132465]
[1756537389992,2.80254825,205.23,205.2,0.03132465]
[1756537390287,4.13,205.21,205.2,0.03132465]
[1756537390494,6.57355188,205.21,205.2,0.03132465]
[1756537390886,2.44355188,205.21,205.2,7.86132465]
[1756537391082,0.03353445,205.25,205.2,0.03132465]
[1756537391293,6.57,205.35,205.25,7.83]
[1756537392592,6.57,205.35,205.28,0.03655735]
[1756537392790,6.57,205.35,205.28,7.86655735]
[1756537394792,77.32786315,205.39,205.28,7.86655735]
[1756537395095,83.93786315,205.39,205.28,7.86655735]
[1756537395292,6.61,205.39,205.3,2.80254825]
[1756537395488,9.41254825,205.42,205.31,7.83]
[1756537396300,9.41254825,205.42,205.34,7.86675311]
[1756537397297,6.61,205.42,205.34,7.86675311]
[1756537397694,45.67,205.45,205.34,7.86675311]
[1756537398400,45.67,205.45,205.37,7.83]
[1756537398593,6.61,205.45,205.37,7.83]
[1756537399197,6.61,205.45,205.39,0.03468253]
[1756537399393,6.61,205.45,205.39,7.86468253]
[1756537399591,6.61,205.49,205.39,10.66723078]
[1756537400792,2.80254825,205.51,205.39,2.83723078]
[1756537400992,2.80254825,205.49,205.4,7.83]
[1756537401193,6.61,205.48,205.4,7.83]
[1756537401801,6.61,205.48,205.42,0.03717846]
[1756537403094,0.84722036,205.53,205.42,0.03717846]
[1756537403095,2.80254825,205.46,205.42,0.03717846]
[1756537403698,6.61,205.45,205.42,0.03717846]
[1756537404099,2.80254825,205.46,205.42,0.03717846]
[1756537404402,6.61,205.44,205.42,0.03717846]
[1756537404604,2.80254825,205.45,205.42,0.03717846]
[1756537404804,6.61,205.44,205.42,0.03717846]
[1756537405103,2.80254825,205.45,205.42,0.03717846]
[1756537405703,6.61,205.44,205.42,0.03717846]
[1756537405899,2.80254825,205.45,205.42,0.03717846]
[1756537406400,6.59,205.44,205.42,0.03717846]
[1756537406798,2.80254825,205.45,205.42,0.03717846]
[1756537407203,6.59,205.44,205.42,0.03717846]
[1756537407403,2.80254825,205.45,205.42,0.03717846]
[1756537407800,6.59,205.44,205.42,0.03717846]
[1756537408805,2.80254825,205.45,205.42,0.03717846]
[1756537410304,6.59,205.44,205.31,7.83]
[1756537410504,9.36254825,205.4,205.31,7.83]
[1756537411607,0.03394423,205.38,205.31,7.83]
[1756537413404,2.80254825,205.37,205.31,7.83]
[1756537413607,2.80254825,205.37,205.26,2.80254825]
[1756537413807,6.56,205.36,205.27,7.83]
[1756537414412,0.03271376,205.34,205.27,7.83]
[1756537416106,6.56,205.33,205.27,7.83]
[1756537418713,2.83526201,205.34,205.27,7.83]
[1756537421415,0.03271376,205.34,205.27,7.83]
[1756537423014,0.03271376,205.34,205.3,7.25]
[1756537423520,6.57,205.4,205.3,7.25]
[1756537423818,0.03482704,205.34,205.3,7.25]
[1756537427224,0.03482704,205.34,205.29,2.80254825]
[1756537427417,0.03482704,205.34,205.3,7.25]
[1756537432921,0.03482704,205.34,205.33,7.25]
[1756537433124,6.57,205.44,205.33,7.25]
[1756537433312,6.57,205.44,205.35,2.80254825]
[1756537433518,6.57,205.44,205.36,7.25]
[1756537434418,6.57,205.44,205.38,0.03526009]
[1756537439726,10.26,205.49,205.38,0.03526009]
[1756537439727,2.80254825,205.43,205.38,0.03526009]
[1756537439926,6.6,205.42,205.38,0.03526009]
[1756537440527,6.6,205.42,205.38,7.28526009]
[1756537440725,6.6,205.42,205.39,7.25]
[1756537441728,6.6,205.46,205.39,7.25]
[1756537443831,6.6,205.43,205.38,0.03526009]
[1756537444022,9.40254825,205.44,205.38,0.03526009]
[1756537447531,6.6,205.44,205.38,0.03526009]
[1756537454234,2.80254825,205.47,205.38,0.03526009]
[1756537454531,6.6,205.46,205.38,7.28526009]
[1756537461744,6.6,205.46,205.39,7.25]
[1756537463537,6.59,205.44,205.39,7.25]
[1756537463740,2.80254825,205.45,205.39,7.25]
[1756537463938,6.59,205.44,205.39,7.25]
[1756537464138,2.80254825,205.45,205.39,7.25]
[1756537464541,6.59,205.44,205.39,7.25]
[1756537465038,2.80254825,205.45,205.39,7.25]
[1756537465239,6.59,205.44,205.38,0.03526009]
[1756537465436,6.59,205.41,205.38,0.03526009]
[1756537465946,5.44894334,205.47,205.38,0.03526009]
[1756537466146,6.59,205.4,205.38,0.03526009]
[1756537467345,2.80254825,205.41,205.38,0.03526009]
[1756537467642,6.59,205.42,205.38,0.03526009]
[1756537468838,6.59,205.39,205.38,0.03526009]
[1756537469844,9.39254825,205.39,205.38,0.03526009]
[1756537473052,6.59,205.44,205.38,7.28526009]
[1756537474652,6.59,205.41,205.38,0.03526009]
[1756537475042,2.80254825,205.42,205.38,0.03526009]
[1756537475248,6.59,205.41,205.38,0.03526009]
[1756537476152,6.59,205.41,205.38,7.28526009]
[1756537477148,2.80254825,205.44,205.38,0.03526009]
[1756537477354,9.40254825,205.44,205.38,0.03526009]
[1756537478064,6.6,205.44,205.38,0.03526009]
[1756537481860,2.80254825,205.41,205.38,0.03526009]
[1756537482065,6.6,205.4,205.38,0.03526009]
[1756537482258,2.80254825,205.41,205.38,0.03526009]
[1756537482458,6.6,205.4,205.38,0.03526009]
[1756537482659,2.80254825,205.41,205.38,0.03526009]
[1756537482856,6.6,205.4,205.38,0.03526009]
[1756537483060,2.80254825,205.41,205.38,0.03526009]
[1756537483262,6.6,205.4,205.38,0.03526009]
[1756537483661,6.6,205.42,205.38,0.03526009]
[1756537484062,2.80254825,205.43,205.38,0.03526009]
[1756537484563,6.6,205.42,205.38,0.03526009]
[1756537484760,2.80254825,205.43,205.38,0.03526009]
[1756537485462,6.6,205.42,205.38,0.03526009]
[1756537485964,2.80254825,205.43,205.38,0.03526009]
[1756537486964,6.6,205.42,205.38,0.03526009]
[1756537487358,6.6,205.39,205.38,0.03526009]
[1756537492464,9.40254825,205.39,205.38,0.03526009]
[1756537493259,9.88254825,205.39,205.26,7.77]
[1756537493558,9.40254825,205.33,205.26,7.77]
[1756537493859,2.80254825,205.3,205.21,5.47297579]
[1756537494066,9.40254825,205.3,205.22,7.77]
[1756537494465,0.03261735,205.28,205.22,7.77]
[1756537494765,2.52718973,205.27,205.18,7.77]
[1756537494957,2.52718973,205.26,205.18,7.77]
[1756537495266,0.03261735,205.28,205.18,7.77]
[1756537495461,2.5254135,205.27,205.18,7.77]
[1756537495662,2.5254135,205.26,205.18,7.77]
[1756537495863,0.03261735,205.28,205.18,7.77]
[1756537496068,2.5254135,205.27,205.18,7.77]
[1756537496267,0.03261735,205.28,205.18,7.77]
[1756537496460,9.12406774,205.27,205.18,7.77]
[1756537496660,2.52386675,205.26,205.18,7.77]
[1756537496862,2.52386675,205.25,205.18,7.77]
[1756537497065,9.40254825,205.27,205.18,7.77]
[1756537497373,2.52380984,205.26,205.18,7.77]
[1756537497662,0.03127723,205.25,205.18,7.77]
[1756537501872,9.40254825,205.24,205.18,7.77]
[1756537502075,2.80254825,205.21,205.08,2.80254825]
[1756537502266,2.80254825,205.21,205.09,7.77]
[1756537502470,2.51566844,205.2,205.09,7.77]
[1756537502669,2.80254825,205.18,205.1,7.77]
[1756537502865,0.03143655,205.17,205.1,7.77]
[1756537506380,6.63143655,205.17,205.1,7.77]
[1756537507876,2.80254825,205.16,205.1,7.77]
[1756537510471,6.6,205.15,205.1,7.77]
[1756537510676,2.80254825,205.16,205.1,7.77]
[1756537510868,2.80254825,205.14,205.1,7.77]
[1756537511067,9.40254825,205.14,205.1,7.77]
[1756537513584,9.40254825,205.14,205.07,7.37]
[1756537514281,0.03282187,205.13,205.07,7.37]
[1756537515078,6.6,205.12,205.07,7.37]
[1756537515283,9.40254825,205.11,205.04,7.37]
[1756537519584,2.80254825,205.11,205.05,7.37]
[1756537521186,2.83537012,205.13,205.05,7.37]
[1756537521386,9.42537012,205.13,205.05,7.37]
[1756537524993,0.03282187,205.13,205.02,2.80254825]
[1756537525286,0.03282187,205.13,205.07,7.37]
[1756537525484,0.03282187,205.13,205.09,2.80254825]
[1756537525685,0.03282187,205.13,205.1,7.37]
[1756537526383,0.03282187,205.13,205.11,4.3875]
[1756537526584,29.87,205.23,205.13,7.37]
[1756537526780,2.50410441,205.22,205.13,7.37]
[1756537526984,29.87,205.23,205.13,7.37]
[1756537527185,2.50419515,205.22,205.13,7.37]
[1756537527389,29.87,205.23,205.13,7.37]
[1756537527687,2.5052336,205.22,205.13,7.37]
[1756537527890,6.63,205.21,205.13,7.37]
[1756537528394,6.63,205.21,205.15,0.0319457]
[1756537528692,330.36254825,205.24,205.15,7.4019457]
[1756537528991,2.50667048,205.23,205.15,7.4019457]
[1756537529287,64.82236022,205.25,205.17,2.80254825]
[1756537529492,64.82236022,205.25,205.18,7.37]
[1756537530282,64.82236022,205.25,205.19,0.03141237]
[1756537530487,64.82236022,205.25,205.2,2.80254825]
[1756537530794,6.63,205.29,205.21,7.37]
[1756537530992,6.63,205.27,205.21,7.37]
[1756537531191,6.63,205.25,205.21,7.37]
[1756537531690,6.63,205.25,205.21,7.40111508]
[1756537532591,6.63,205.25,205.22,7.37]
[1756537533099,6.63,205.29,205.21,0.03111508]
[1756537533292,2.51354723,205.28,205.21,0.03111508]
[1756537533594,2.51354723,205.27,205.21,0.03111508]
[1756537533797,6.63,205.25,205.21,0.03111508]
[1756537534496,6.63,205.28,205.22,7.37]
[1756537534700,5.31913798,205.27,205.21,0.03111508]
[1756537534995,2.80254825,205.24,205.21,0.03111508]
[1756537535190,6.63,205.22,205.21,0.03111508]
[1756537535390,9.14658973,205.22,205.21,0.03111508]
[1756537538493,9.15161147,205.22,205.21,0.03111508]
[1756537539195,9.15150279,205.22,205.21,0.03111508]
[1756537539502,9.15150279,205.22,205.12,7.24]
[1756537539699,2.80254825,205.19,205.12,7.24]
[1756537539999,2.52150279,205.18,205.12,7.24]
[1756537540201,2.80254825,205.19,205.1,7.24]
[1756537540400,9.15222307,205.18,205.1,7.24]
[1756537540698,2.52222307,205.17,205.1,7.24]
[1756537540894,2.52222307,205.16,205.1,7.24]
[1756537541092,0.03198227,205.16,205.1,7.24]
[1756537541288,0.03198227,205.16,205.1,7.19014825]
[1756537541490,0.03198227,205.16,205.11,7.24]
[1756537542799,0.03198227,205.16,205.13,7.24]
[1756537542996,0.03198227,205.16,205.12,4.3872]
[1756537543496,75.87699684,205.29,205.15,7.24]
[1756537543806,2.52733582,205.28,205.21,7.24]
[1756537543994,2.52733582,205.27,205.21,7.24]
[1756537544299,426.1,205.36,205.2,7.24]
[1756537544300,9.18733582,205.26,205.2,7.24]
[1756537544501,2.52733582,205.25,205.16,7.24]
[1756537544695,2.52733582,205.24,205.21,0.03147371]
[1756537544897,2.52733582,205.23,205.21,0.03147371]
[1756537545198,2.52666065,205.22,205.21,0.03147371]
[1756537545398,9.18666065,205.22,205.21,0.03147371]
[1756537547200,2.52666065,205.22,205.21,0.03147371]
[1756537547694,2.52666065,205.22,205.21,7.27147371]
[1756537547899,49.84254825,205.28,205.22,7.24]
[1756537548100,2.52633599,205.27,205.21,0.03147371]
[1756537548401,2.52633599,205.26,205.22,7.24]
[1756537548601,2.52633599,205.25,205.22,7.24]
[1756537548801,47.04,205.28,205.22,7.24]
[1756537549004,2.50416071,205.27,205.22,7.24]
[1756537549306,2.50416071,205.26,205.22,7.24]
[1756537549505,2.50416071,205.25,205.22,7.24]
[1756537549701,6.66,205.27,205.22,7.24]
[1756537549902,2.50360304,205.26,205.22,7.24]
[1756537550106,2.50360304,205.25,205.22,7.24]
[1756537550403,6.66,205.27,205.22,7.24]
[1756537550603,2.50273737,205.26,205.22,7.24]
[1756537550801,6.66,205.27,205.21,7.27147371]
[1756537551001,6.66,205.25,205.21,7.27147371]
[1756537551800,47.04,205.28,205.21,0.03147371]
[1756537552005,9.16176871,205.27,205.22,7.24]
[1756537552205,9.16176871,205.26,205.22,7.24]
[1756537552405,6.66,205.26,205.22,7.24]
[1756537553307,6.66,205.27,205.21,0.03147371]
[1756537553507,6.66,205.25,205.21,0.03147371]
[1756537553707,6.66,205.25,205.21,7.27147371]
[1756537555709,6.66,205.25,205.22,7.24]
[1756537555910,6.66,205.29,205.22,7.24]
[1756537556111,2.50025153,205.28,205.22,7.24]
[1756537556410,6.66,205.29,205.22,7.24]
[1756537556612,2.50004294,205.28,205.22,7.24]
[1756537556814,6.66,205.29,205.22,7.24]
[1756537557014,2.50040026,205.28,205.22,7.24]
[1756537557215,6.66,205.29,205.22,7.24]
[1756537557414,2.50020837,205.28,205.22,7.24]
[1756537557618,9.46254825,205.29,205.22,7.24]
[1756537557915,6.66,205.27,205.23,0.03372697]
[1756537558111,6.66,205.28,205.23,0.03372697]
[1756537558312,6.66,205.25,205.23,0.03372697]
[1756537559418,2.80254825,205.26,205.23,0.03372697]
[1756537559624,6.66,205.24,205.23,0.03372697]
[1756537560523,9.15995568,205.24,205.14,7.24]
[1756537560724,2.80254825,205.22,205.14,7.24]
[1756537562025,0.03345116,205.2,205.14,7.24]
[1756537562428,0.03345116,205.2,205.13,2.80254825]
[1756537562618,0.03345116,205.2,205.17,7.24]
[1756537562820,17.99254825,205.32,205.19,2.80254825]
[1756537563022,2.50257252,205.31,205.2,7.24]
[1756537563323,2.50257252,205.3,205.23,4.3849]
[1756537563523,6.69,205.32,205.24,7.24]
[1756537563821,2.80254825,205.35,205.26,7.24]
[1756537564027,6.69,205.33,205.26,7.24]
[1756537564224,2.50304554,205.32,205.26,7.24]
[1756537564420,9.19304554,205.31,205.28,0.03361461]
[1756537564620,6.69,205.31,205.28,0.03361461]
[1756537564825,2.80254825,205.34,205.28,0.03361461]
[1756537565023,2.80254825,205.31,205.28,0.03361461]
[1756537565226,6.69,205.29,205.28,0.03361461]
[1756537565622,9.1924013,205.29,205.28,0.03361461]
[1756537567523,6.69,205.26,205.16,7.63]
[1756537567729,2.80254825,205.24,205.16,7.63]
[1756537567930,2.5024013,205.23,205.16,7.63]
[1756537568128,2.5024013,205.22,205.16,7.63]
[1756537568331,2.80254825,205.23,205.16,7.63]
[1756537568525,2.50320716,205.22,205.16,7.63]
[1756537568722,2.53657398,205.21,205.16,7.63]
[1756537568927,6.7239732,205.21,205.16,7.63]
[1756537569532,2.50435878,205.2,205.16,7.63]
[1756537569733,6.7239732,205.21,205.16,7.63]
[1756537570432,2.50473116,205.2,205.16,7.63]
[1756537570635,6.7239732,205.21,205.16,7.63]
[1756537570833,2.50485907,205.2,205.16,7.63]
[1756537571033,6.7239732,205.21,205.16,7.63]
[1756537571235,2.5048467,205.2,205.16,7.63]
[1756537571432,2.5048467,205.19,205.16,7.63]
[1756537573732,2.5048467,205.19,205.1,7.63]
[1756537573927,2.5048467,205.18,205.1,7.63]
[1756537574133,2.5048467,205.17,205.1,7.63]
[1756537574435,2.5048467,205.16,205.1,7.63]
[1756537574636,2.5048467,205.15,205.08,7.63]
[1756537574834,2.50409014,205.14,205.08,7.63]
[1756537575034,0.03185735,205.16,205.08,7.63]
[1756537575231,2.50408976,205.15,205.08,7.63]
[1756537575434,0.03185735,205.16,205.08,7.63]
[1756537575636,2.50336116,205.15,205.08,7.63]
[1756537575837,0.03185735,205.16,205.08,7.63]
[1756537576036,2.50336116,205.15,205.08,7.63]
[1756537576332,2.50300673,205.14,205.08,7.63]
[1756537576536,0.03185735,205.16,205.08,7.63]
[1756537576738,2.50248346,205.15,205.08,7.63]
[1756537576939,2.50248346,205.14,205.08,7.63]
[1756537577140,0.03185735,205.16,205.08,7.63]
[1756537577335,2.50248346,205.15,205.08,7.63]
[1756537577536,2.50248346,205.14,205.08,7.63]
[1756537577739,0.03185735,205.16,205.08,7.63]
[1756537578039,2.50186085,205.15,205.08,7.63]
[1756537578231,2.50186085,205.14,205.08,7.63]
[1756537578542,0.03185735,205.16,205.08,7.63]
[1756537578742,2.5000979,205.15,205.08,7.63]
[1756537578931,2.5000979,205.14,205.08,7.63]
[1756537579135,0.03185735,205.16,205.08,7.63]
[1756537579333,11.99262317,205.15,205.08,7.63]
[1756537579541,2.50007492,205.14,205.08,7.63]
[1756537579737,9.49254825,205.15,205.08,7.63]
[1756537579937,2.49911407,205.14,205.08,7.63]
[1756537580141,9.49254825,205.15,205.08,7.63]
[1756537580342,2.49911354,205.14,205.08,7.63]
[1756537580643,9.49254825,205.15,205.08,7.63]
[1756537580840,2.49853083,205.14,205.08,7.63]
[1756537581140,9.49254825,205.15,205.08,7.63]
[1756537581442,2.4989603,205.14,205.08,7.63]
[1756537581740,6.69,205.15,205.08,7.63]
[1756537581942,2.49841719,205.14,205.08,7.63]
[1756537582142,6.69,205.15,205.08,7.63]
[1756537582339,2.49841719,205.14,205.08,7.63]
[1756537582541,6.69,205.15,205.08,7.63]
[1756537582743,0.03185735,205.16,205.1,7.63]
[1756537583343,2.80254825,205.21,205.1,7.63]
[1756537583541,0.03542638,205.15,205.1,7.63]
[1756537583735,0.03542638,205.15,205.11,7.63]
[1756537583941,0.03542638,205.15,205.1,4.3877]
[1756537584243,0.03542638,205.15,205.11,7.63]
[1756537584843,0.03542638,205.15,205.09,2.80254825]
[1756537585043,0.03542638,205.15,205.1,7.63]
[1756537587041,0.03542638,205.15,205.09,7.19044825]
[1756537588148,0.03542638,205.15,205.1,7.63]
[1756537588741,0.03542638,205.15,205.09,7.19044825]
[1756537589651,0.03542638,205.15,205.1,7.63]
[1756537589845,0.03542638,205.15,205.12,7.63]
[1756537590243,0.03542638,205.15,205.11,4.3874]
[1756537590455,0.03542638,205.15,205.12,7.63]
[1756537590948,0.03542638,205.15,205.1,7.63]
[1756537591146,0.03542638,205.15,205.09,2.80254825]
[1756537591340,0.03542638,205.15,205.1,7.63]
[1756537592048,0.03542638,205.15,205.09,2.80254825]
[1756537592850,0.03542638,205.15,205.1,7.63]
[1756537593052,0.03542638,205.15,205.09,2.80254825]
[1756537593445,0.03542638,205.15,205.1,7.63]
[1756537593642,0.03542638,205.15,205.09,2.80254825]
[1756537594044,0.03542638,205.15,205.1,7.63]
[1756537594257,0.03542638,205.15,205.09,2.80254825]
[1756537594448,0.03542638,205.15,205.1,7.63]
[1756537594649,0.03542638,205.15,205.09,2.80254825]
[1756537594952,0.03542638,205.15,205.09,7.63]
[1756537600961,2.50350684,205.14,205.09,7.63]
[1756537601156,6.73542638,205.15,205.09,7.63]
[1756537601346,6.73542638,205.15,205.05,7.27]
[1756537601347,2.50362183,205.14,205.05,7.27]
[1756537601551,2.50351904,205.13,205.05,7.27]
[1756537601752,2.80254825,205.14,205.05,7.27]
[1756537601954,2.50350053,205.13,205.05,7.27]
[1756537602260,6.7,205.13,205.05,7.27]
[1756537602456,2.50349962,205.12,205.05,7.27]
[1756537602656,6.7,205.13,205.05,7.27]
[1756537602957,2.50349962,205.12,205.05,7.27]
[1756537603159,0.03176505,205.11,205.05,7.27]
[1756537604059,6.7,205.09,205.05,7.27]
[1756537604260,2.50290791,205.1,204.99,7.19244825]
[1756537604261,9.50254825,205.1,205.0,7.27]
[1756537605058,0.03084317,205.07,205.0,7.27]
[1756537613873,6.73084317,205.07,205.0,7.27]
[1756537619983,0.03084317,205.07,205.02,7.27]
[1756537620577,0.03084317,205.07,204.98,4.3901]
[1756537620778,0.03084317,205.07,204.99,10.07254825]
[1756537621080,0.03084317,205.07,205.0,7.27]
[1756537637298,2.51084711,205.06,205.0,7.27]
[1756537637499,0.03084317,205.07,205.0,7.27]
[1756537637797,2.51084711,205.06,205.0,7.27]
[1756537637999,0.03084317,205.07,205.0,7.27]
[1756537638200,2.51084711,205.06,205.0,7.27]
[1756537638400,0.03084317,205.07,205.0,7.27]
[1756537638603,2.51147755,205.06,205.0,7.27]
[1756537638900,2.51140334,205.05,205.0,7.27]
[1756537639099,0.03084317,205.07,205.0,7.27]
[1756537639302,2.51145072,205.06,205.0,7.27]